bitfinex/quotes_ETHUSD_20220311
["timestamp","ask_amount","ask_price","bid_price","bid_amount"]
[1646986797833,1.211184,2600.7,2600.1,0.08649574]
[1646986798631,0.961184,2600.7,2600.1,0.08649574]
[1646986799277,2.92952693,2601.1,2600.3,0.00438324]
[1646986799480,1.15509037,2601.5,2600.3,0.00438324]
[1646986799481,1.96332642,2601.5,2600.3,0.00438324]
[1646986799684,0.04320297,2601.4,2600.3,0.00438324]
[1646986799877,0.04320297,2601.4,2600.3,0.08177722]
[1646986800082,0.04320297,2601.4,2600.3,0.07739398]
[1646986800083,1.04272565,2600.8,2600.3,0.07739398]
[1646986800283,0.00674214,2600.7,2600.3,0.0015367]
[1646986800481,0.96798174,2600.7,2600.3,0.01907045]
[1646986801282,0.96798174,2600.7,2600.3,0.0015367]
[1646986801481,0.96798174,2600.7,2600.4,0.00438314]
[1646986802480,0.96798174,2600.7,2600.3,0.0015367]
[1646986802682,0.96798174,2600.7,2600.4,0.00438309]
[1646986803741,0.96798174,2600.7,2600.3,0.0015367]
[1646986803939,0.96798174,2600.7,2600.4,0.00425159]
[1646986804139,1.01491385,2600.7,2600.4,0.00425159]
[1646986804342,0.05367425,2600.7,2600.4,0.00425159]
[1646986804963,0.05367425,2600.7,2600.3,0.0015367]
[1646986805142,0.05367425,2600.7,2600.4,0.00425159]
[1646986805344,0.00674214,2600.7,2600.4,0.00425159]
[1646986805743,0.96791054,2600.7,2600.4,0.00425159]
[1646986805944,1.91657371,2600.7,2600.4,0.00425159]
[1646986806144,1.91657371,2600.7,2600.1,0.08682272]
[1646986806344,1.91657371,2600.7,2600.4,0.00425159]
[1646986806802,0.96791054,2600.7,2600.4,0.00425159]
[1646986807402,0.00674214,2600.7,2600.1,0.08682272]
[1646986807605,0.00674214,2600.7,2600.4,0.00405031]
[1646986808502,0.00674214,2600.7,2600.1,0.08682272]
[1646986808903,0.00674214,2600.7,2600.4,0.00405031]
[1646986809604,0.05122027,2600.7,2600.4,0.00405031]
[1646986809804,0.05122027,2600.7,2600.1,0.08682272]
[1646986810005,0.05122027,2600.7,2600.4,0.00405031]
[1646986810308,0.05122027,2600.7,2600.6,0.0018922]
[1646986814621,0.0502183,2600.7,2600.6,0.0018922]
[1646986815422,0.0502183,2600.7,2600.5,0.00627316]
[1646986815628,0.0502183,2600.7,2600.5,0.00189419]
[1646986816122,0.0502183,2600.7,2600.5,0.00627316]
[1646986816926,0.0502183,2600.7,2600.5,0.00189419]
[1646986817128,0.0502183,2600.7,2600.5,0.00627321]
[1646986817527,0.00574017,2600.7,2600.5,0.00627321]
[1646986818138,0.00574017,2600.7,2600.5,0.00189419]
[1646986818338,0.00574017,2600.7,2600.5,0.00627321]
[1646986819337,0.96692017,2600.7,2600.5,0.00189419]
[1646986819537,0.96692017,2600.7,2600.5,0.00583046]
[1646986820443,0.96692017,2600.7,2600.5,0.00189419]
[1646986820744,0.96692017,2600.7,2600.5,0.00583046]
[1646986821775,0.00574017,2600.7,2600.5,0.00189419]
[1646986821979,0.00574017,2600.7,2600.5,0.00583046]
[1646986822984,0.00574017,2600.7,2600.5,0.00189419]
[1646986823183,0.00574017,2600.7,2600.5,0.00563974]
[1646986824185,0.00574017,2600.7,2600.5,0.00189419]
[1646986824487,0.00574017,2600.7,2600.5,0.00566502]
[1646986825285,0.00574017,2600.7,2600.5,0.00189419]
[1646986825529,0.00574017,2600.7,2600.5,0.00566502]
[1646986826528,0.00574017,2600.7,2600.5,0.00189419]
[1646986826729,0.00574017,2600.7,2600.5,0.00567274]
[1646986827730,0.00574017,2600.7,2600.5,0.00189419]
[1646986827932,0.00574017,2600.7,2600.5,0.00567742]
[1646986828931,0.00574017,2600.7,2600.5,0.00189419]
[1646986829175,0.00574017,2600.7,2600.5,0.00567742]
[1646986829375,0.96702017,2600.7,2600.5,0.00567742]
[1646986830078,0.96702017,2600.7,2600.5,0.00189419]
[1646986830277,0.96702017,2600.7,2600.5,0.00567674]
[1646986830478,0.9612556,2600.5,2600.1,3.5]
[1646986830683,0.9612556,2600.5,2600.0,293.90820204]
[1646986831287,1.9226056,2600.5,2600.0,293.90820204]
[1646986831882,2.7609056,2600.5,2600.0,293.90820204]
[1646986832942,0.0482368,2600.3,2600.0,293.90820204]
[1646986833132,1.009595,2600.3,2600.0,293.90820204]
[1646986833734,0.96135,2600.5,2600.0,293.90820204]
[1646986833942,2.97066621,2600.6,2600.1,3.5]
[1646986833943,1.97066621,2600.6,2600.1,3.5]
[1646986834134,5.47066621,2600.6,2600.1,3.5]
[1646986834336,5.47066621,2600.6,2600.0,293.91087202]
[1646986834535,1.97066621,2600.6,2600.0,293.91087202]
[1646986834936,1.97066621,2600.6,2600.0,293.90820204]
[1646986835135,0.00437801,2600.4,2600.0,293.91258082]
[1646986835335,0.00704053,2600.3,2600.0,293.91258082]
[1646986836136,0.00704053,2600.3,2600.0,293.90820204]
[1646986836335,0.00704053,2600.3,2600.0,293.91258072]
[1646986837379,0.00704053,2600.3,2600.0,293.90820204]
[1646986837580,0.96835373,2600.3,2600.0,293.91258072]
[1646986838486,0.96835373,2600.3,2600.0,293.90820204]
[1646986838987,0.96835373,2600.3,2600.0,293.91218772]
[1646986839386,0.96835373,2600.3,2600.2,1.10653246]
[1646986839588,0.00704053,2600.3,2600.0,293.91218772]
[1646986839788,0.9612153,2600.5,2600.2,0.06972955]
[1646986839988,0.00398507,2600.4,2600.2,0.06972955]
[1646986841135,0.00398505,2600.4,2600.2,0.06972955]
[1646986842140,0.04705162,2600.6,2600.0,293.90820204]
[1646986842340,0.00376583,2600.4,2600.0,293.91196854]
[1646986842642,0.00376583,2600.4,2600.0,294.8857329]
[1646986843242,0.05386946,2600.7,2600.0,294.8819664]
[1646986843541,0.05386946,2600.7,2600.0,294.88573284]
[1646986843542,0.00376587,2600.4,2600.0,294.88573284]
[1646986844589,0.05386946,2600.7,2600.0,294.8819664]
[1646986844785,0.00376587,2600.4,2600.1,0.07282322]
[1646986845787,2.8836647,2600.5,2600.1,0.07282322]
[1646986845986,0.00378366,2600.4,2600.1,0.07282322]
[1646986846990,2.8836647,2600.5,2600.1,0.07282322]
[1646986847188,0.00378366,2600.4,2600.0,293.9119863]
[1646986848035,0.00378366,2600.4,2600.0,293.90820204]
[1646986848240,2.8836647,2600.5,2600.0,293.90820204]
[1646986848436,0.00378366,2600.4,2600.0,293.91198627]
[1646986849435,2.8836647,2600.5,2600.0,293.90820204]
[1646986849640,0.00378602,2600.4,2600.0,293.91198863]
[1646986850636,2.8836647,2600.5,2600.0,293.90820204]
[1646986850838,0.00378602,2600.4,2600.0,293.91198863]
[1646986851038,0.00378602,2600.4,2600.1,0.07710749]
[1646986851679,0.9611838,2600.5,2600.1,0.07710749]
[1646986852079,0.00378602,2600.4,2600.1,0.07710749]
[1646986852986,0.153889,2600.6,2600.1,0.07710749]
[1646986853386,0.00378165,2600.4,2600.1,0.07710749]
[1646986854287,0.153889,2600.6,2600.1,0.07710749]
[1646986854488,0.00378165,2600.4,2600.1,0.07710749]
[1646986855090,0.00378165,2600.4,2600.0,290.14165338]
[1646986855291,0.21327948,2600.6,2600.0,290.13787113]
[1646986855533,0.00378165,2600.4,2600.3,0.00171486]
[1646986856536,0.21327948,2600.6,2600.3,0.00171486]
[1646986856735,0.003782,2600.5,2600.3,0.00171486]
[1646986857541,0.003782,2600.5,2600.0,290.13914695]
[1646986857738,0.21327948,2600.6,2600.0,290.13536421]
[1646986857939,0.153889,2600.6,2600.0,290.13536421]
[1646986858141,0.00378196,2600.5,2600.1,0.21946929]
[1646986858342,0.00378196,2600.5,2600.1,0.60286929]
[1646986858542,0.00378196,2600.5,2600.2,1.06407563]
[1646986858744,0.00378196,2600.5,2600.3,0.06859285]
[1646986858943,0.153889,2600.6,2600.2,1.0]
[1646986859382,0.003782,2600.5,2600.2,1.0]
[1646986859580,0.003782,2600.5,2600.2,0.99369214]
[1646986860185,0.153889,2600.6,2600.2,0.99369214]
[1646986860482,0.00378195,2600.5,2600.2,0.99369214]
[1646986861384,0.153889,2600.6,2600.2,0.99369214]
[1646986861583,0.06211934,2600.5,2600.0,288.65252104]
[1646986862582,0.05833739,2600.5,2600.0,288.64873835]
[1646986862787,0.00378204,2600.4,2600.0,288.65252099]
[1646986863843,1.01952739,2600.5,2600.0,288.64873835]
[1646986864042,0.00378204,2600.4,2600.0,288.65252096]
[1646986864943,1.01952739,2600.5,2600.0,288.64873835]
[1646986865346,0.00378204,2600.4,2600.0,288.65252096]
[1646986865544,0.96502114,2600.4,2600.0,288.65252096]
[1646986866244,1.01952739,2600.5,2600.0,288.64873835]
[1646986866443,0.00378204,2600.4,2600.0,288.65252096]
[1646986866679,0.06192302,2600.4,2600.0,288.65252096]
[1646986867282,0.05814098,2600.4,2600.0,288.64873835]
[1646986867682,0.06192301,2600.4,2600.0,288.65252095]
[1646986868690,0.05814098,2600.4,2600.0,288.64873835]
[1646986868885,0.06192301,2600.4,2600.0,288.65252095]
[1646986869286,0.0552192,2600.2,2600.0,289.77690242]
[1646986869487,0.05303038,2600.1,2600.0,289.77690242]
[1646986869685,0.05303038,2600.1,2600.0,289.77311982]
[1646986870087,0.05547282,2600.4,2600.0,289.77690237]
[1646986870933,0.05169084,2600.4,2600.0,289.77311982]
[1646986871132,0.05620881,2600.7,2600.0,291.00941982]
[1646986871333,0.00378204,2600.4,2600.0,291.01320243]
[1646986872133,0.05441774,2600.5,2600.0,291.00941982]
[1646986872535,0.00378204,2600.4,2600.0,291.01320243]
[1646986872735,0.00378204,2600.4,2600.0,288.65252096]
[1646986873339,0.05441774,2600.5,2600.0,288.65252096]
[1646986873340,0.05441774,2600.5,2600.0,288.64873835]
[1646986873538,1.01562774,2600.5,2600.0,288.64873835]
[1646986873740,1.01562774,2600.5,2600.0,288.65252096]
[1646986873741,0.00378204,2600.4,2600.0,288.65252096]
[1646986873938,0.05417109,2600.3,2600.0,288.65252096]
[1646986874485,0.05417109,2600.3,2600.0,288.64873835]
[1646986874885,0.05417109,2600.3,2600.0,288.65252093]
[1646986875789,0.05417109,2600.3,2600.0,288.64873835]
[1646986875986,0.05417109,2600.3,2600.0,288.65252093]
[1646986876189,0.05308066,2600.2,2600.0,288.65252093]
[1646986876387,0.05536511,2600.1,2600.0,288.65252093]
[1646986876990,0.05536511,2600.1,2600.0,288.64873835]
[1646986879138,3.5,2600.1,2600.0,288.64873835]
[1646986880141,3.5,2600.1,2600.0,282.87927865]
[1646986881782,3.653931,2600.1,2600.0,282.87927865]
[1646986882185,3.5,2600.1,2600.0,282.87927865]
[1646986883886,3.962,2600.1,2600.0,282.87927865]
[1646986884087,3.962,2600.1,2600.0,277.10973865]
[1646986884486,3.962,2600.1,2600.0,271.34041865]
[1646986885534,4.115938,2600.1,2600.0,271.34041865]
[1646986885934,3.962,2600.1,2600.0,271.34041865]
[1646986889186,2.8841636,2600.3,2600.0,271.34041865]
[1646986889386,0.21391514,2600.1,2600.0,271.34041865]
[1646986889784,0.05999614,2600.1,2600.0,271.34041865]
[1646986891787,0.05999614,2600.1,2600.0,272.32524233]
[1646986891985,0.05999614,2600.1,2600.0,271.34041865]
[1646986896687,0.88574506,2600.3,2600.1,5.5]
[1646986897287,0.00394146,2600.4,2600.1,5.5]
[1646986897488,0.00394146,2600.4,2600.1,5.8834]
[1646986897687,0.04986357,2601.0,2600.3,0.82732509]
[1646986897889,0.00374021,2600.4,2600.1,9.01624831]
[1646986898094,0.00374021,2600.4,2600.1,5.92243744]
[1646986898492,0.00374021,2600.4,2600.1,4.75023744]
[1646986898692,1.9223397,2600.6,2600.1,4.75023744]
[1646986899297,1.9223397,2600.6,2600.1,4.70023744]
[1646986900101,0.0014461,2600.5,2600.1,4.70023744]
[1646986900533,0.0014461,2600.5,2600.2,0.45453437]
[1646986900933,0.96106,2600.8,2600.2,0.45453437]
[1646986901434,0.00407622,2600.5,2600.2,0.45453437]
[1646986901833,0.00407622,2600.5,2600.2,0.07113437]
[1646986902235,0.96106,2600.8,2600.2,0.07113437]
[1646986902435,0.00407622,2600.5,2600.2,0.07113437]
[1646986903041,0.00407622,2600.5,2600.1,4.70023744]
[1646986903441,2.9292695,2600.6,2600.1,4.70023744]
[1646986903641,0.00417302,2600.4,2600.1,4.70023744]
[1646986904289,0.00417302,2600.4,2600.2,1.03383928]
[1646986904486,0.00417302,2600.4,2600.3,0.07467832]
[1646986904686,0.96116,2600.6,2600.3,0.07467832]
[1646986904887,0.00417307,2600.4,2600.3,0.07467832]
[1646986905790,0.96116,2600.6,2600.1,4.70023744]
[1646986905992,0.92017951,2600.6,2600.1,4.70023744]
[1646986906190,0.00403526,2600.5,2600.1,4.70023744]
[1646986906991,0.96112,2600.8,2600.1,4.70023744]
[1646986907395,0.00392075,2600.4,2600.1,4.70023744]
[1646986907596,0.00392075,2600.4,2600.2,0.07050799]
[1646986908245,0.96112,2600.8,2600.2,0.07050799]
[1646986908441,0.00392075,2600.4,2600.2,0.07050799]
[1646986908944,0.00392075,2600.4,2600.2,3.57050799]
[1646986909144,0.00392075,2600.4,2600.3,0.07404734]
[1646986909543,0.04598547,2600.5,2600.3,0.07404734]
[1646986909745,6.00827931,2601.1,2600.3,0.07404734]
[1646986909746,3.33e-05,2600.4,2600.3,0.07404734]
[1646986909945,3.33e-05,2600.4,2600.3,3.95744734]
[1646986910547,1.9683235,2601.4,2600.3,3.95744734]
[1646986910746,1.1355,2601.6,2600.4,0.07544125]
[1646986910955,1.96425454,2601.8,2601.3,0.82655219]
[1646986911145,1.96425454,2601.8,2600.7,0.3834]
[1646986911344,1.96425454,2601.8,2600.8,3.5]
[1646986911345,0.82655219,2600.9,2600.8,3.5]
[1646986912383,0.82655219,2600.9,2600.8,4.4607]
[1646986913990,0.25379578,2600.9,2600.8,4.4607]
[1646986914193,2.30591,2602.1,2600.8,7.8441]
[1646986914396,0.3846,2602.1,2601.1,0.3834]
[1646986914695,0.3846,2602.1,2601.4,1.34386]
[1646986914893,0.3846,2602.1,2601.5,3.5]
[1646986915094,1.1607,2602.8,2601.6,0.3834]
[1646986915293,0.96035,2602.8,2602.2,1.11785435]
[1646986915570,0.96035,2602.8,2601.8,0.00191893]
[1646986915769,0.0043605,2601.9,2601.8,1.34368]
[1646986916167,0.0043605,2601.9,2601.8,4.84368]
[1646986916370,0.0043605,2601.9,2601.8,4.99968]
[1646986916569,1.10568325,2603.2,2601.8,6.12399103]
[1646986916776,1.10568325,2603.2,2601.8,7.12830996]
[1646986916970,1.10568325,2603.2,2601.9,0.1456]
[1646986916971,0.00436045,2602.0,2601.9,0.1456]
[1646986917174,0.00436045,2602.0,2601.9,4.0322]
[1646986917476,0.00436045,2602.0,2601.9,4.0386]
[1646986917670,0.00436045,2602.0,2601.9,4.0378]
[1646986917872,2.06585325,2603.2,2601.9,4.0378]
[1646986918071,2.06585325,2603.2,2601.9,4.0386]
[1646986918272,0.00436035,2602.1,2602.0,0.144]
[1646986918469,0.00436035,2602.1,2602.0,4.0274]
[1646986918671,0.00436035,2602.1,2602.0,3.8834]
[1646986918871,0.00436035,2602.1,2602.0,0.3834]
[1646986919070,1.10568325,2603.2,2602.0,0.3834]
[1646986919301,0.00422944,2602.2,2602.0,0.3834]
[1646986919507,0.00422944,2602.2,2602.1,1.34362]
[1646986919910,0.00422944,2602.2,2602.1,4.61512699]
[1646986920114,0.00422944,2602.2,2602.1,5.77691153]
[1646986920309,0.04673419,2603.4,2602.1,2.65635983]
[1646986920509,0.00422934,2602.3,2602.1,2.65475983]
[1646986920711,0.00422934,2602.3,2602.2,0.1448]
[1646986920911,0.00422934,2602.3,2602.2,0.144]
[1646986921111,0.00422934,2602.3,2602.1,0.53443983]
[1646986921312,0.00422934,2602.3,2602.1,0.53603983]
[1646986921612,0.04673419,2603.4,2602.2,0.08012506]
[1646986921812,0.0042293,2602.3,2602.2,0.08012506]
[1646986922812,0.96027,2603.2,2602.2,0.08012506]
[1646986922813,4.46027,2603.2,2602.2,0.08012506]
[1646986923047,4.46027,2603.2,2602.1,0.00143983]
[1646986923048,0.0040242,2602.4,2602.1,0.00143983]
[1646986924049,0.96042,2602.8,2602.1,0.00143983]
[1646986924255,0.0040242,2602.4,2602.1,1.00143983]
[1646986924649,0.0040242,2602.4,2602.2,0.07296577]
[1646986925255,0.04966046,2602.9,2602.4,0.00143786]
[1646986925652,0.04449731,2603.4,2602.4,0.00143786]
[1646986926053,0.04449731,2603.4,2602.5,1.0]
[1646986926251,1.92038,2603.5,2602.6,0.07700735]
[1646986926456,0.96022,2603.5,2602.6,0.07700735]
[1646986926701,0.96022,2603.5,2602.8,1.14199678]
[1646986926702,0.00403746,2603.0,2602.8,1.14199678]
[1646986926902,0.00403746,2603.0,2602.9,0.07877789]
[1646986927502,0.05183472,2604.0,2602.9,0.07877789]
[1646986927702,0.05183472,2604.0,2603.0,0.3834]
[1646986927908,0.00403742,2603.1,2603.0,0.47073037]
[1646986928302,0.00403742,2603.1,2603.0,0.63313037]
[1646986928703,0.15369,2604.1,2603.0,0.25053037]
[1646986928903,0.15369,2604.1,2603.0,0.24973037]
[1646986929104,0.00403733,2603.2,2603.0,0.24973037]
[1646986929306,0.00403733,2603.2,2603.1,1.0]
[1646986929604,0.00403733,2603.2,2603.1,1.3834]
[1646986929805,0.00403733,2603.2,2603.1,1.5386]
[1646986930004,0.81861196,2604.2,2603.1,1.1512]
[1646986930305,0.81861196,2604.2,2603.2,0.08132416]
[1646986930306,0.00403629,2603.3,2603.2,0.08132416]
[1646986930551,0.00403629,2603.3,2603.2,0.23732416]
[1646986930750,0.77264825,2604.2,2603.3,4.5]
[1646986930951,0.77264825,2604.2,2603.5,0.9597]
[1646986931148,0.77264825,2604.2,2603.6,0.07095502]
[1646986931549,0.77264825,2604.2,2603.4,0.07043006]
[1646986931749,0.82612024,2604.2,2603.4,0.07043006]
[1646986932251,0.04440828,2604.1,2603.2,0.00146559]
[1646986932448,0.04440828,2604.1,2603.2,0.07124367]
[1646986933055,1.00424828,2604.1,2603.2,0.07124367]
[1646986933449,1.06239029,2603.9,2603.2,0.07124367]
[1646986933848,0.00435862,2603.8,2603.2,0.07124367]
[1646986934495,0.00435862,2603.8,2603.2,1.17503367]
[1646986934698,1.00953897,2604.4,2603.3,3.57640334]
[1646986934895,0.05161743,2604.2,2603.3,3.57640334]
[1646986935096,0.00435877,2603.6,2603.3,3.72040334]
[1646986935296,0.00435877,2603.6,2603.4,0.08216349]
[1646986935500,0.00435877,2603.6,2603.5,0.08642418]
[1646986935899,0.05161743,2604.2,2603.5,0.08642418]
[1646986936096,0.05161743,2604.2,2603.4,0.00146431]
[1646986936298,0.00435872,2603.7,2603.4,0.00146431]
[1646986937103,1.92002,2603.7,2603.4,0.00146431]
[1646986937303,0.04943727,2603.6,2603.4,0.00146431]
[1646986937973,0.04943727,2603.6,2602.7,2.4704]
[1646986937974,0.00292861,2603.3,2602.7,2.4704]
[1646986938273,0.00292861,2603.3,2602.6,1.0]
[1646986938274,0.05215261,2603.2,2602.6,1.0]
[1646986938466,0.05215261,2603.2,2602.5,9.074]
[1646986938667,0.05215261,2603.2,2602.4,3.5]
[1646986938868,0.05215261,2603.2,2602.3,1.27364661]
[1646986939267,1.83151737,2603.1,2602.3,1.27364661]
[1646986939469,1.83151737,2603.1,2602.3,0.08384661]
[1646986939868,0.87121567,2603.1,2602.3,0.08384661]
[1646986940071,3.75212567,2603.1,2602.3,0.08384661]
[1646986940271,0.96019,2602.9,2602.4,1.0]
[1646986940472,0.05040039,2603.3,2602.5,3.5]
[1646986940671,0.00292861,2603.3,2602.5,3.5]
[1646986941272,0.00292861,2603.3,2602.6,0.08969174]
[1646986941474,0.96009,2603.2,2602.5,3.5]
[1646986941699,0.05107048,2603.1,2602.4,1.0]
[1646986941899,0.00292861,2603.3,2602.4,1.0]
[1646986942107,0.00292861,2603.3,2602.2,1.21172053]
[1646986942108,0.00292861,2603.3,2602.5,3.73272755]
[1646986942303,0.00292861,2603.3,2602.6,1.07834497]
[1646986942506,0.00292861,2603.3,2602.7,3.58816262]
[1646986942702,0.00292861,2603.3,2602.7,3.5]
[1646986942905,0.00292861,2603.3,2602.8,0.06952583]
[1646986943105,0.00292861,2603.3,2602.8,1.21460853]
[1646986943307,0.00292861,2603.3,2602.8,0.06952583]
[1646986943510,0.00292861,2603.3,2602.4,3.71478227]
[1646986943704,0.04493837,2603.3,2602.4,3.71558227]
[1646986943904,0.04493837,2603.3,2602.4,3.56998227]
[1646986944105,0.96009,2603.2,2602.4,3.56998227]
[1646986944306,0.96009,2603.2,2602.6,1.0]
[1646986944506,0.96009,2603.2,2602.7,3.5]
[1646986944910,3.84681531,2603.5,2602.8,5.5]
[1646986945107,0.00616531,2603.5,2603.0,0.08811184]
[1646986945305,0.00617781,2603.3,2603.0,0.08811184]
[1646986945556,0.00617781,2603.3,2603.1,1.0]
[1646986945756,0.00617781,2603.3,2603.2,0.08778968]
[1646986946159,0.00617781,2603.3,2603.2,3.58778968]
[1646986946359,0.00617781,2603.3,2603.1,1.0]
[1646986947966,0.00617781,2603.3,2603.2,3.5]
[1646986949408,0.00617781,2603.3,2603.1,1.0]
[1646986951716,0.00617781,2603.3,2602.7,2.3084]
[1646986951918,0.00617781,2603.3,2602.5,5.31935843]
[1646986951919,0.98866586,2603.1,2602.5,5.31935843]
[1646986952118,0.98866586,2603.1,2602.5,0.01745843]
[1646986952318,0.0519865,2603.0,2602.5,0.01745843]
[1646986952719,0.0519865,2603.0,2602.3,0.32069999]
[1646986952946,0.0519865,2603.0,2602.3,0.07069999]
[1646986955555,3.5519865,2603.0,2602.1,1.16575607]
[1646986955754,3.5519865,2603.0,2602.1,0.01615607]
[1646986955755,0.462,2602.9,2602.1,0.01615607]
[1646986955953,0.04612735,2602.8,2602.1,0.01615607]
[1646986956151,0.462,2602.7,2602.1,0.01615607]
[1646986956557,0.462,2602.7,2601.9,3.2867]
[1646986956558,1.42261,2602.7,2601.9,3.2867]
[1646986956795,0.05392816,2602.6,2601.9,3.30285684]
[1646986957192,0.05392816,2602.6,2601.9,0.01615684]
[1646986957596,0.05392816,2602.6,2601.7,5.88765974]
[1646986957797,0.05392816,2602.6,2601.8,0.1456]
[1646986958002,0.05385759,2603.1,2601.8,0.24969202]
[1646986958302,0.05385759,2603.1,2601.8,0.26249202]
[1646986958602,0.96426323,2603.5,2601.9,0.45599892]
[1646986958603,0.00403323,2603.5,2601.9,0.45599892]
[1646986958802,3.54893645,2603.6,2602.1,0.07408728]
[1646986959000,0.91704302,2603.2,2602.2,0.87565685]
[1646986959206,0.96202702,2603.2,2602.3,0.07959104]
[1646986960204,1.92222702,2603.2,2602.3,0.07959104]
[1646986960458,0.00668749,2603.0,2602.2,0.01614231]
[1646986961358,0.05435606,2603.0,2602.1,0.22235712]
[1646986961557,0.05435606,2603.0,2602.1,0.24012547]
[1646986961958,0.05435606,2603.0,2602.1,0.24172547]
[1646986962158,0.05435606,2603.0,2602.1,0.24492547]
[1646986962358,0.05435606,2603.0,2602.3,1.0]
[1646986962558,0.05435606,2603.0,2602.3,1.96016]
[1646986964197,0.00668749,2603.0,2602.3,0.96016]
[1646986964404,0.00668749,2603.0,2602.4,3.71222108]
[1646986964600,0.00668749,2603.0,2602.5,0.08357514]
[1646986964799,0.00668749,2603.0,2602.6,0.96003]
[1646986965002,0.00668749,2603.0,2602.8,1.0]
[1646986965400,0.0088373,2603.0,2602.8,1.0]
[1646986965804,0.0088373,2603.0,2602.9,0.22827118]
[1646986966002,0.0088373,2603.0,2602.9,0.23467118]
[1646986966200,0.0088373,2603.0,2602.9,0.23787118]
[1646986966401,0.0088373,2603.0,2602.9,0.23227118]
[1646986966601,0.0088373,2603.0,2602.9,0.22987118]
[1646986966801,0.00800506,2603.0,2602.9,0.23227118]
[1646986967004,0.00800506,2603.0,2602.9,0.23147118]
[1646986967401,0.00800506,2603.0,2602.9,0.23227118]
[1646986967605,0.00800506,2603.0,2602.9,0.22987118]
[1646986967802,0.00800506,2603.0,2602.9,0.23067118]
[1646986968046,0.00800506,2603.0,2602.9,0.23547118]
[1646986968248,0.00800506,2603.0,2602.9,0.23467118]
[1646986968447,0.00800506,2603.0,2602.9,0.07387118]
[1646986968852,0.00800506,2603.0,2602.9,0.24747118]
[1646986969048,0.00800506,2603.0,2602.9,4.11857311]
[1646986969252,0.00800506,2603.0,2602.9,4.04550193]
[1646986969449,0.00800506,2603.0,2602.9,0.5674]
[1646986969651,0.00800506,2603.0,2602.9,0.5666]
[1646986969848,0.00800506,2603.0,2602.9,4.04986912]
[1646986970049,0.00800506,2603.0,2602.9,4.05226912]
[1646986970451,0.00800506,2603.0,2602.9,4.05706912]
[1646986970648,0.00800506,2603.0,2602.9,4.05626912]
[1646986971049,0.00800506,2603.0,2602.9,0.573]
[1646986971251,0.00800506,2603.0,2602.9,0.5778]
[1646986971449,0.00800506,2603.0,2602.9,4.06147629]
[1646986971713,0.00800506,2603.0,2602.9,0.573]
[1646986971902,0.00800506,2603.0,2602.9,0.5746]
[1646986972102,0.00800506,2603.0,2602.9,0.577]
[1646986972310,0.00800506,2603.0,2602.9,0.5786]
[1646986972503,0.00800506,2603.0,2602.9,0.5698]
[1646986972702,0.00800506,2603.0,2602.9,0.5706]
[1646986972902,0.00800506,2603.0,2602.9,0.5698]
[1646986973304,0.00800506,2603.0,2602.9,0.5706]
[1646986973505,0.00800506,2603.0,2602.9,0.569]
[1646986973703,0.00800506,2603.0,2602.9,0.5674]
[1646986973902,0.00800506,2603.0,2602.9,0.5682]
[1646986974102,0.00800506,2603.0,2602.9,0.5674]
[1646986974303,0.00800506,2603.0,2602.9,0.5698]
[1646986974705,0.00800506,2603.0,2602.9,0.569]
[1646986974908,0.00800506,2603.0,2602.9,0.5698]
[1646986975305,0.00800506,2603.0,2602.9,0.5682]
[1646986977151,0.9598,2604.0,2603.2,0.95984]
[1646986977354,0.9598644,2604.1,2603.2,0.95984]
[1646986977557,0.9598644,2604.1,2603.3,0.1536]
[1646986977754,0.9598644,2604.1,2603.3,0.156]
[1646986977954,0.9598644,2604.1,2603.4,0.1464]
[1646986978153,0.9598644,2604.1,2603.3,0.1536]
[1646986978355,2.08533626,2604.1,2603.3,0.1536]
[1646986978553,2.08533626,2604.1,2603.3,0.1544]
[1646986978753,2.08533626,2604.1,2603.4,0.1464]
[1646986978954,2.08533626,2604.1,2603.3,0.1544]
[1646986979392,0.00403629,2603.9,2603.3,0.22754662]
[1646986979592,0.00403629,2603.9,2603.3,0.22674662]
[1646986979794,0.00403629,2603.9,2603.3,0.22914662]
[1646986979993,0.00403629,2603.9,2603.3,0.22274662]
[1646986980205,0.00403629,2603.9,2603.3,0.22034662]
[1646986980399,2.08533626,2604.1,2603.4,0.00792892]
[1646986980800,0.00403642,2603.7,2603.4,0.00792892]
[1646986981800,1.12547186,2604.1,2603.4,0.00792892]
[1646986982203,0.00403647,2603.7,2603.4,0.00792892]
[1646986982706,0.00403647,2603.7,2603.6,1.0]
[1646986982942,1.12547186,2604.1,2603.6,1.0]
[1646986983146,0.00404414,2603.7,2603.6,1.0]
[1646986984048,0.04738409,2604.2,2603.6,1.0]
[1646986984250,0.00404405,2603.8,2603.6,1.0]
[1646986985252,0.04738409,2604.2,2603.8,0.00788038]
[1646986986703,0.00404322,2604.1,2603.8,0.00788038]
[1646986987695,0.04738409,2604.2,2603.8,0.00788038]
[1646986987899,0.00404327,2604.1,2603.8,0.00788038]
[1646986988899,0.04738409,2604.2,2603.8,0.00788038]
[1646986989104,0.00404327,2604.1,2603.8,0.00788038]
[1646986990103,0.04738409,2604.2,2603.8,0.00788038]
[1646986990303,0.00404609,2604.1,2603.6,1.0]
[1646986991344,0.04738409,2604.2,2603.6,1.0]
[1646986991544,0.00404618,2604.0,2603.6,1.0]
[1646986991746,0.96390618,2604.0,2603.6,1.0]
[1646986992343,0.95986,2604.0,2603.6,1.0]
[1646986992744,0.00404622,2603.9,2603.6,1.0]
[1646986993852,0.00404329,2603.9,2603.6,1.0]
[1646986994904,0.95986,2604.0,2603.6,1.0]
[1646986995103,0.00404329,2603.9,2603.6,1.0]
[1646986995304,0.00404329,2603.9,2603.8,0.00790987]
[1646986996003,0.95986,2604.0,2603.8,0.00790987]
[1646986996402,0.9639032,2604.0,2603.8,0.00790987]
[1646986997206,0.95986,2604.0,2603.8,0.00790987]
[1646986997607,0.96390336,2604.0,2603.8,0.00790987]
[1646986998451,0.95986,2604.0,2603.8,0.00790987]
[1646986998647,0.96390336,2604.0,2603.8,0.00790987]
[1646986999248,1.02317492,2603.9,2603.8,0.00790987]
[1646987000254,1.02317492,2603.9,2603.6,1.0]
[1646987000651,0.0040434,2604.0,2603.6,1.0]
[1646987000852,0.04738409,2604.2,2603.6,1.0]
[1646987001056,0.00404348,2603.9,2603.6,1.0]
[1646987001997,0.88124865,2604.0,2603.6,1.0]
[1646987002204,0.04738409,2604.2,2603.6,1.0]
[1646987002404,0.00171156,2604.0,2603.6,1.0]
[1646987003204,1.05547037,2604.2,2603.6,1.0]
[1646987003405,0.04690244,2604.1,2603.6,1.0]
[1646987003607,0.0017116,2604.0,2603.6,1.0]
[1646987004507,0.04690244,2604.1,2603.6,1.0]
[1646987004805,0.00436666,2604.0,2603.6,1.0]
[1646987005005,0.00436666,2604.0,2603.7,3.5]